fUSD/lending_fUSD_20250113
["ID","MTS","AMOUNT","RATE_DAILY","PERIOD"]
[348732429,1736759457816,-1100.0,0.000109,3]
[348732430,1736759457826,-169.77865788,0.000109,2]
[348732431,1736759457835,-156.26040382,0.000109,2]
[348732432,1736759457845,-500.0,0.00010901,2]
[348732433,1736759457855,-506.54,0.00010901,2]
[348732434,1736759457865,-757.6,0.00010901,2]
[348732435,1736759457874,-4215.41,0.00010901,2]
[348732436,1736759457884,-1439.8,0.00010901,2]
[348732437,1736759457894,-823.11,0.00010901,2]
[348732438,1736759457903,-2120.28,0.00010901,2]
[348732439,1736759457912,-638.25,0.00010901,2]
[348732440,1736759457922,-1653.2,0.00010901,2]
[348732441,1736759457931,-754.38,0.00010901,2]
[348732442,1736759457941,-1242.5,0.00010901,2]
[348732443,1736759457950,-537.64,0.00010901,2]
[348732444,1736759457960,-1141.48,0.00010901,2]
[348732445,1736759457969,-1135.03,0.00010901,2]
[348732446,1736759457979,-574.77,0.00010901,2]
[348732447,1736759457988,-720.16,0.00010901,2]
[348732448,1736759457997,-2056.18,0.00010901,2]
[348732449,1736759458007,-883.53,0.00010901,2]
[348732450,1736759458015,-1209.48,0.00010901,2]
[348732451,1736759458025,-1039.36,0.00010901,2]
[348732452,1736759458034,-500.0,0.00010901,2]
[348732453,1736759458043,-980.41,0.00010901,2]
[348732454,1736759458057,-665.26,0.00010901,2]
[348732455,1736759458067,-500.0,0.00010901,2]
[348732456,1736759458077,-976.242607,0.00010901,2]
[348732457,1736759458086,-1178.8,0.00010901,2]
[348732458,1736759458096,-1159.38,0.00010901,2]
[348732459,1736759458105,-515.92,0.00010901,2]
[348732460,1736759458115,-624.26,0.00010901,2]
[348732461,1736759458124,-2294.67,0.00010901,2]
[348732462,1736759458133,-2258.66,0.00010901,2]
[348732463,1736759458142,-584.05,0.00010901,2]
[348732464,1736759458152,-500.0,0.00010901,2]
[348732465,1736759458161,-500.0,0.00010901,2]
[348732466,1736759458170,-500.0,0.00010902,2]
[348732467,1736759458179,-500.0,0.00010902,2]
[348732468,1736759458189,-500.0,0.00010902,2]
[348732469,1736759458198,-1085.41,0.00010902,2]
[348732470,1736759458207,-552.57,0.00010902,2]
[348732471,1736759458217,-547.38101644,0.00010902,2]
[348732472,1736759458226,-500.0,0.00010902,2]
[348732473,1736759458235,-726.03,0.00010902,2]
[348732474,1736759458245,-500.0,0.00010902,2]
[348732475,1736759458254,-500.0,0.00010902,2]
[348732476,1736759458263,-500.0,0.00010902,2]
[348732477,1736759458272,-547.14,0.00010902,2]
[348732478,1736759458282,-193.87028759,0.00010902,2]
[348732479,1736759458292,-500.0,0.00010902,2]
[348732480,1736759458303,-500.0,0.00010902,2]
[348732481,1736759458312,-500.0,0.00010902,2]
[348732482,1736759458321,-500.0,0.00010902,2]
[348732483,1736759458330,-513.96,0.00010902,2]
[348732484,1736759458339,-500.53,0.00010902,2]
[348732485,1736759458349,-764.05,0.00010902,2]
[348732486,1736759458359,-326.47622829,0.00010902,2]
[348732487,1736759458368,-753.95,0.00010902,2]
[348732488,1736759458377,-500.0,0.00010902,2]
[348732489,1736759458386,-500.0,0.00010902,2]
[348732490,1736759458395,-431.50946423,0.00010902,2]
[348732491,1736759458405,-500.0,0.00010902,2]
[348732492,1736759458415,-649.64,0.00010902,2]
[348732493,1736759458424,-500.0,0.00010902,2]
[348732494,1736759458434,-500.0,0.00010902,2]
[348732495,1736759458443,-500.0,0.00010902,2]
[348732496,1736759458453,-500.0,0.00010902,2]
[348732497,1736759458467,-500.0,0.00010902,2]
[348732498,1736759458477,-500.0,0.00010902,2]
[348732499,1736759458487,-586.72,0.00010902,2]
[348732500,1736759458498,-500.0,0.00010902,2]
[348732501,1736759458508,-915.27,0.00010902,2]
[348732502,1736759458517,-506.25,0.00010902,2]
[348732503,1736759458526,-500.0,0.00010902,2]
[348732504,1736759458536,-500.0,0.00010902,2]
[348732505,1736759458547,-500.0,0.00010902,2]
[348732506,1736759458557,-594.96,0.00010902,2]
[348732507,1736759458566,-500.0,0.00010902,2]
[348732508,1736759458575,-1268.18,0.00010902,2]
[348732509,1736759458584,-500.0,0.00010902,2]
[348732510,1736759458594,-554.67,0.00010902,2]
[348732511,1736759458603,-594.01,0.00010902,2]
[348732512,1736759458612,-500.0,0.00010902,2]
[348732513,1736759458622,-670.04,0.00010902,2]
[348732514,1736759458631,-701.03,0.00010902,2]
[348732515,1736759458641,-500.0,0.00010902,2]
[348732516,1736759458651,-214.47403894,0.00010902,2]
[348732517,1736759458661,-500.0,0.00010902,2]
[348732518,1736759458671,-719.68,0.00010902,2]
[348732519,1736759458680,-574.31,0.00010902,2]
[348732520,1736759458690,-1106.6,0.00010902,2]
[348732521,1736759458700,-686.0,0.00010902,2]
[348732522,1736759458710,-592.51,0.00010902,2]
[348732523,1736759458720,-500.0,0.00010902,2]
[348732524,1736759458729,-500.0,0.00010902,2]
[348732525,1736759458739,-530.3,0.00010902,2]
[348732526,1736759458748,-500.0,0.00010902,2]
[348732527,1736759458758,-164.63,0.00010902,2]
[348732528,1736759458767,-500.0,0.00010902,2]
[348732529,1736759458777,-581.99,0.00010902,2]
[348732530,1736759458787,-500.0,0.00010902,2]
[348732531,1736759458798,-500.0,0.00010902,2]
[348732532,1736759458808,-500.0,0.00010902,2]
[348732533,1736759458817,-500.0,0.00010902,2]
[348732534,1736759458827,-500.0,0.00010902,2]
[348732535,1736759458836,-591.12,0.00010902,2]
[348732536,1736759458846,-500.0,0.00010902,2]
[348732537,1736759458855,-265.879189,0.00010902,2]
[348732538,1736759458865,-500.0,0.00010902,2]
[348732539,1736759458875,-2580.57,0.00010902,2]
[348732540,1736759458886,-624.33,0.00010902,2]
[348732541,1736759458895,-509.06,0.00010902,2]
[348732542,1736759458905,-500.0,0.00010902,2]
[348732543,1736759458914,-500.0,0.00010902,2]
[348732544,1736759458924,-500.0,0.00010902,2]
[348732545,1736759458933,-547.35,0.00010902,2]
[348732546,1736759458942,-500.0,0.00010902,2]
[348732547,1736759458952,-500.0,0.00010902,2]
[348732548,1736759458961,-1134.73,0.00010902,2]
[348732549,1736759458970,-657.76,0.00010902,2]
[348732550,1736759458979,-514.33,0.00010902,2]
[348732551,1736759458989,-500.0,0.00010902,2]
[348732552,1736759458999,-376.45495344,0.00010902,2]
[348732553,1736759459009,-1745.25,0.00010902,2]
[348732554,1736759459018,-606.77,0.00010902,2]
[348732555,1736759459027,-500.0,0.00010902,2]
[348732556,1736759459036,-500.0,0.00010902,2]
[348732557,1736759459047,-869.26,0.00010902,2]
[348732558,1736759459056,-536.71,0.00010902,2]
[348732559,1736759459066,-500.0,0.00010902,2]
[348732560,1736759459075,-500.0,0.00010902,2]
[348732561,1736759459084,-606.56,0.00010902,2]
[348732562,1736759459094,-594.06,0.00010902,2]
[348732563,1736759459106,-559.19,0.00010902,2]
[348732564,1736759459117,-500.0,0.00010902,2]
[348732565,1736759459127,-991.36,0.00010902,2]
[348732566,1736759459138,-708.34,0.00010902,2]
[348732567,1736759459148,-158.07608924,0.00010902,2]
[348732568,1736759459158,-500.0,0.00010902,2]
[348732569,1736759459169,-500.0,0.00010902,2]
[348732570,1736759459179,-500.0,0.00010902,2]
[348732571,1736759459188,-500.0,0.00010902,2]
[348732572,1736759459198,-500.0,0.00010902,2]
[348732573,1736759459208,-500.0,0.00010902,2]
[348732574,1736759459218,-500.0,0.00010902,2]
[348732575,1736759459227,-697.23,0.00010902,2]
[348732576,1736759459236,-993.3,0.00010902,2]
[348732577,1736759459245,-500.0,0.00010902,2]
[348732578,1736759459256,-580.85,0.00010902,2]
[348732579,1736759459265,-578.28284386,0.00010902,2]
[348732580,1736759459275,-500.0,0.00010902,2]
[348732581,1736759459286,-647.33,0.00010902,2]
[348732582,1736759459297,-622.6,0.00010902,2]
[348732583,1736759459307,-943.19,0.00010902,2]
[348732584,1736759459316,-500.0,0.00010902,2]
[348732585,1736759459326,-568.61,0.00010902,2]
[348732586,1736759459337,-500.0,0.00010902,2]
[348732587,1736759459347,-541.47,0.00010902,2]
[348732588,1736759459357,-500.0,0.00010902,2]
[348732589,1736759459366,-1879.46,0.00010902,2]
[348732590,1736759459376,-789.45,0.00010902,2]
[348732591,1736759459385,-2544.04,0.00010902,2]
[348732592,1736759459396,-500.0,0.00010902,2]
[348732593,1736759459406,-730.53,0.00010902,2]
[348732594,1736759459415,-310.86265037,0.00010902,2]
[348732595,1736759459425,-577.21,0.00010902,2]
[348732596,1736759459434,-1180.37,0.00010902,2]
[348732597,1736759459444,-1559.94,0.00010902,2]
[348732598,1736759459454,-518.1,0.00010902,2]
[348732599,1736759459469,-2146.48,0.00010902,2]
[348732600,1736759459479,-500.0,0.00010902,2]
[348732601,1736759459489,-500.0,0.00010902,2]
[348732602,1736759459500,-751.67,0.00010902,2]
[348732603,1736759459509,-500.0,0.00010902,2]
[348732604,1736759459519,-500.0,0.00010902,2]
[348732605,1736759459530,-500.0,0.00010902,2]
[348732606,1736759459542,-1152.69,0.00010902,2]
[348732607,1736759459553,-907.65,0.00010902,2]
[348732608,1736759459563,-1712.56,0.00010902,2]
[348732609,1736759459572,-525.2,0.00010902,2]
[348732610,1736759459583,-500.0,0.00010902,2]
[348732611,1736759459592,-517.32,0.00010902,2]
[348732612,1736759459601,-500.0,0.00010902,2]
[348732613,1736759459611,-500.0,0.00010902,2]
[348732614,1736759459621,-577.21,0.00010902,2]
[348732615,1736759459630,-811.82,0.00010902,2]
[348732616,1736759459640,-500.0,0.00010902,2]
[348732617,1736759459649,-843.18,0.00010902,2]
[348732618,1736759459658,-500.0,0.00010902,2]
[348732619,1736759459667,-500.0,0.00010902,2]
[348732620,1736759459677,-500.0,0.00010902,2]
[348732621,1736759459686,-666.04,0.00010902,2]
[348732622,1736759459695,-500.0,0.00010902,2]
[348732623,1736759459705,-318.13149344,0.00010902,2]
[348732624,1736759459714,-500.0,0.00010902,2]
[348732625,1736759459723,-2244.71,0.00010902,2]
[348732626,1736759459733,-725.77,0.00010902,2]
[348732627,1736759459743,-500.0,0.00010902,2]
[348732628,1736759459753,-500.0,0.00010902,2]
[348732629,1736759459763,-518.03228948,0.00010902,2]
[348732630,1736759459772,-1147.96,0.00010902,2]
[348732631,1736759459782,-500.0,0.00010902,2]
[348732632,1736759459791,-500.0,0.00010902,2]
[348732633,1736759459806,-183.06,0.00010902,2]
[348732634,1736759459815,-500.0,0.00010902,2]
[348732635,1736759459825,-2132.02,0.00010902,2]
[348732636,1736759459836,-917.37,0.00010903,2]
[348732637,1736759459845,-628.41,0.00010903,2]
[348732638,1736759459854,-802.43,0.00010903,2]
[348732639,1736759459863,-686.54,0.00010903,2]
[348732640,1736759459872,-450.96303078,0.00010903,2]
[348732641,1736759460179,-377.64982274,0.00010903,2]
[348732642,1736759460190,-224.69714648,0.00010903,2]
[348732643,1736759460200,-1238.11056811,0.00010903,2]
[348732644,1736759460211,-80.63943189,0.00010903,2]
[348732645,1736759460220,-1000.0,0.00010903,2]
[348732646,1736759460230,-1331.84,0.00010903,2]
[348732647,1736759460239,-488.70835814,0.00010903,2]
[348732648,1736759460251,-125.97164186,0.00010903,2]
[348732649,1736759460260,-2474.31,0.00010903,2]
[348732650,1736759460269,-500.0,0.00010903,2]
[348732651,1736759460279,-4054.77,0.00010903,2]
[348732652,1736759460288,-1797.57,0.00010903,2]
[348732653,1736759460301,-810.43,0.00010903,2]
[348732654,1736759460314,-1180.07,0.00010903,2]
[348732655,1736759460323,-523.94605711,0.00010903,2]
[348732656,1736759460335,-230.59394289,0.00010903,2]
[348732657,1736759460345,-697.22,0.00010903,2]
[348732658,1736759460354,-1921.32,0.00010903,2]
[348732659,1736759460363,-500.0,0.00010903,2]
[348732660,1736759460372,-680.59,0.00010903,2]
[348732661,1736759460382,-1083.84,0.00010903,2]
[348732662,1736759460392,-500.0,0.00010903,2]
[348732663,1736759460402,-995.44,0.00010903,2]
[348732664,1736759460412,-1093.29,0.00010915,2]
[348732665,1736759460421,-424.70605711,0.00010958,2]
[348732666,1736759460432,-75.29394289,0.00010958,2]
[348732667,1736759460442,-500.0,0.00010958,2]
[348732668,1736759460451,-500.0,0.00010958,2]
[348732669,1736759460462,-500.0,0.00010958,2]
[348732670,1736759460472,-566.5,0.00010958,2]
[348732671,1736759460482,-999.0,0.00010958,2]
[348732672,1736759460491,-4000.0,0.00010959,2]
[348732673,1736759460502,-1119.06431095,0.00010976,2]
[348732674,1736759460512,-1181.1248062,0.00010999,2]
[348732675,1736759460521,-744.18258763,0.00011,2]
[348732676,1736759460539,-358.67365013,0.00011,2]
[348732677,1736759460556,-68589.9609388,0.00011,2]
[348732678,1736759460568,-1067.6047624,0.00011,2]
[348732679,1736759460579,-991.31969553,0.00011,2]
[348732680,1736759460826,-47966.01850571,0.00011,2]
[348732681,1736759460838,-10418.23845889,0.00011,2]
[348732682,1736759460850,-842.00015863,0.00011,2]
[348732683,1736759460861,-434.91505466,0.00011,2]
[348732684,1736759460872,-5096.647325,0.00011,2]
[348732685,1736759460883,-429.52322016,0.00011,2]
[348732686,1736759460895,-134566.51475338,0.00011,2]
[348732687,1736759460905,-15398.6716932,0.00011,2]
[348732688,1736759460916,-8387.02441259,0.00011,2]
[348732689,1736759460928,-23486.86413292,0.00011,2]
[348732690,1736759460939,-2699.80418807,0.00011,2]
[348732691,1736759460950,-3118.69337497,0.00011,2]
[348732692,1736759460961,-466.89687,0.00011,2]
[348732693,1736759460972,-348.547565,0.00011,2]
[348732694,1736759460983,-1612.25733872,0.00011,2]
[348732695,1736759461001,-16178.1110814,0.00011,2]
[348732696,1736759461011,-14258.89913316,0.00011,2]
[348732697,1736759461023,-13599.74085251,0.00011,2]
[348732698,1736759461032,-3944.61623776,0.00011,2]
[348732699,1736759461043,-882.47667716,0.00011,2]
[348732700,1736759461064,-5192.7683044,0.00011,2]
[348732701,1736759461075,-660.00000004,0.00011,2]
[348732702,1736759461089,-27787.06331225,0.00011,2]
[348732703,1736759705211,164.0,0.0002,120]
[348732705,1736760244157,1125.76,8.219e-05,2]
[348732938,1736760437065,1000.0,8.511e-05,2]
[348732939,1736760497732,250.0,8.479e-05,2]
[348732945,1736760523861,200.0,8.444e-05,2]
[348732952,1736760586233,250.0,8.513e-05,2]
[348732969,1736760632596,-288.27,8.624e-05,2]
[348732970,1736760632605,-66.65370002,8.628e-05,2]
[348732971,1736760632617,-646.35199392,8.628e-05,2]
[348732972,1736760632628,-1031.34430606,8.628e-05,2]
[348732973,1736760632637,-283.13435254,8.647e-05,2]
[348732974,1736760632646,-3896.85048274,8.648e-05,2]
[348732975,1736760632655,-327.71,8.648e-05,2]
[348732976,1736760632664,-1493.1,8.648e-05,2]
[348732977,1736760632673,-200.0,8.648e-05,2]
[348732978,1736760632682,-250.0,8.674e-05,2]
[348732979,1736760632691,-165.44,8.692e-05,2]
[348732980,1736760632701,-558.42,8.773e-05,2]
[348732981,1736760632710,-231.81,8.773e-05,2]
[348732982,1736760632719,-22026.88308712,8.812e-05,2]
[348732983,1736760632731,-1873.11691288,8.812e-05,2]
[348732984,1736760632740,-1858.92,8.83e-05,2]
[348732985,1736760632750,-545.56,8.921e-05,2]
[348732986,1736760632759,-2096.21,8.958e-05,2]
[348732987,1736760632769,-544.86,9.069e-05,2]
[348732988,1736760632779,-4043.72,9.128e-05,2]
[348732989,1736760632788,-1852.42,9.149e-05,2]
[348732990,1736760632798,-150.0,9.43e-05,2]
[348732991,1736760632808,-8846.9369,9.431e-05,2]
[348732992,1736760632818,-37186.7431,9.432e-05,2]
[348732993,1736760632830,-3776.0593,9.433e-05,2]
[348732994,1736760632841,-500.0,9.47e-05,2]
[348732995,1736760632850,-189.51,9.515e-05,2]
[348732996,1736760632859,-500.0,9.531e-05,2]
[348732997,1736760632870,-500.0,9.531e-05,2]
[348732998,1736760632879,-575.72,9.531e-05,2]
[348732999,1736760632889,-547.65,9.531e-05,2]
[348733000,1736760632902,-500.0,9.531e-05,2]
[348733001,1736760632912,-500.0,9.531e-05,2]
[348733002,1736760632922,-539.76,9.531e-05,2]
[348733003,1736760632931,-500.0,9.531e-05,2]
[348733004,1736760632940,-514.5,9.531e-05,2]
[348733005,1736760632950,-445.862043,9.531e-05,2]
[348733007,1736760632959,-500.0,9.531e-05,2]
[348733009,1736760632967,-234.53567102,9.531e-05,2]
[348733011,1736760632979,-265.46432898,9.531e-05,2]
[348733013,1736760632989,-500.0,9.531e-05,2]
[348733015,1736760632998,-519.81893047,9.531e-05,2]
[348733017,1736760633007,-500.0,9.531e-05,2]
[348733019,1736760633016,-500.0,9.531e-05,2]
[348733021,1736760633026,-500.0,9.531e-05,2]
[348733023,1736760633035,-500.0,9.531e-05,2]
[348733025,1736760633045,-500.0,9.531e-05,2]
[348733027,1736760633055,-531.26,9.531e-05,2]
[348733030,1736760633064,-500.0,9.531e-05,2]
[348733032,1736760633074,-500.0,9.531e-05,2]
[348733034,1736760633083,-522.92,9.531e-05,2]
[348733036,1736760633093,-205.67408064,9.531e-05,2]
[348733039,1736760633104,-243.66444744,9.531e-05,2]
[348733042,1736760633114,-592.09,9.531e-05,2]
[348733045,1736760633124,-500.0,9.531e-05,2]
[348733048,1736760633134,-547.9,9.531e-05,2]
[348733050,1736760633143,-580.49175111,9.531e-05,2]
[348733052,1736760633153,-563.75,9.531e-05,2]
[348733054,1736760633163,-500.0,9.531e-05,2]
[348733056,1736760633172,-500.0,9.531e-05,2]
[348733058,1736760633182,-500.0,9.531e-05,2]
[348733060,1736760633192,-814.06,9.531e-05,2]
[348733062,1736760633201,-851.04,9.531e-05,2]
[348733064,1736760633213,-314.62184989,9.531e-05,2]
[348733074,1736760633300,-229.90815011,9.531e-05,2]
[348733076,1736760633310,-1254.4,9.531e-05,2]
[348733078,1736760633320,-787.65,9.531e-05,2]
[348733080,1736760633329,-525.1,9.531e-05,2]
[348733082,1736760633339,-573.04,9.531e-05,2]
[348733084,1736760633348,-712.54,9.531e-05,2]
[348733086,1736760633358,-0.87178387,9.531e-05,2]
[348733088,1736760633369,-829.07821613,9.531e-05,2]
[348733090,1736760633379,-382.22178387,9.531e-05,2]
[348733091,1736760633392,-304.22821613,9.531e-05,2]
[348733092,1736760633402,-500.0,9.531e-05,2]
[348733093,1736760633411,-744.98,9.531e-05,2]
[348733094,1736760633422,-448.00913182,9.531e-05,2]
[348733095,1736760633434,-503.13086818,9.531e-05,2]
[348733096,1736760633444,-2021.14,9.531e-05,2]
[348733097,1736760633454,-565.9,9.532e-05,2]
[348733098,1736760633464,-522.92,9.532e-05,2]
[348733099,1736760633474,-1440.99,9.532e-05,2]
[348733100,1736760633484,-500.0,9.532e-05,2]
[348733101,1736760633494,-510.44,9.532e-05,2]
[348733102,1736760633503,-812.88,9.532e-05,2]
[348733103,1736760633513,-746.58,9.532e-05,2]
[348733104,1736760633764,-500.0,9.532e-05,2]
[348733105,1736760633774,-1000.0,9.532e-05,2]
[348733106,1736760633784,-308.8046638,9.532e-05,2]
[348733107,1736760633796,-191.1953362,9.532e-05,2]
[348733108,1736760633806,-500.0,9.532e-05,2]
[348733109,1736760633816,-1348.18,9.532e-05,2]
[348733110,1736760633829,-885.05,9.532e-05,2]
[348733111,1736760633838,-680.73,9.532e-05,2]
[348733112,1736760633848,-858.19,9.532e-05,2]
[348733113,1736760633859,-544.33,9.532e-05,2]
[348733114,1736760633868,-1000.0,9.574e-05,2]
[348733115,1736760633878,-288.27,9.702e-05,2]
[348733116,1736760633888,-211.7887,9.705e-05,2]
[348733117,1736760633898,-2500.0,9.705e-05,2]
[348733118,1736760633908,-500.0,9.805e-05,2]
[348733119,1736760633918,-500.0,9.805e-05,2]
[348733120,1736760633927,-547.65,9.805e-05,2]
[348733121,1736760633936,-500.0,9.805e-05,2]
[348733122,1736760633945,-500.0,9.805e-05,2]
[348733123,1736760633955,-539.76,9.805e-05,2]
[348733124,1736760633964,-500.0,9.805e-05,2]
[348733125,1736760633974,-514.5,9.805e-05,2]
[348733126,1736760633983,-540.28,9.805e-05,2]
[348733127,1736760633992,-500.0,9.805e-05,2]
[348733128,1736760634002,-604.36905914,9.805e-05,2]
[348733129,1736760634011,-500.0,9.805e-05,2]
[348733130,1736760634020,-500.0,9.805e-05,2]
[348733131,1736760634029,-500.0,9.805e-05,2]
[348733132,1736760634039,-500.0,9.805e-05,2]
[348733133,1736760634048,-531.26,9.805e-05,2]
[348733134,1736760634057,-500.0,9.805e-05,2]
[348733135,1736760634067,-458.51761494,9.805e-05,2]
[348733136,1736760634076,-522.92,9.805e-05,2]
[348733137,1736760634085,-592.09,9.805e-05,2]
[348733138,1736760634094,-605.6973408,9.805e-05,2]
[348733139,1736760634103,-547.9,9.805e-05,2]
[348733140,1736760634113,-563.75,9.805e-05,2]
[348733141,1736760634127,-500.0,9.805e-05,2]
[348733142,1736760634137,-500.0,9.805e-05,2]
[348733143,1736760634146,-500.0,9.805e-05,2]
[348733144,1736760634156,-651.25,9.805e-05,2]
[348733145,1736760634166,-565.78,9.805e-05,2]
[348733146,1736760634178,-500.0,9.805e-05,2]
[348733147,1736760634188,-779.52,9.805e-05,2]
[348733148,1736760634198,-3396.2,9.805e-05,2]
[348733149,1736760634208,-500.0,9.805e-05,2]
[348733150,1736760634223,-500.0,9.805e-05,2]
[348733151,1736760634232,-814.06,9.805e-05,2]
[348733152,1736760634242,-568.2,9.805e-05,2]
[348733153,1736760634251,-500.0,9.805e-05,2]
[348733154,1736760634260,-3161.55,9.805e-05,2]
[348733155,1736760634269,-851.04,9.805e-05,2]
[348733156,1736760634278,-544.53,9.805e-05,2]
[348733157,1736760634288,-1079.85,9.805e-05,2]
[348733158,1736760634298,-500.0,9.805e-05,2]
[348733159,1736760634307,-1254.4,9.805e-05,2]
[348733160,1736760634317,-1590.21,9.805e-05,2]
[348733161,1736760634327,-787.65,9.805e-05,2]
[348733162,1736760634336,-500.0,9.805e-05,2]
[348733163,1736760634345,-869.54,9.805e-05,2]
[348733164,1736760634354,-525.1,9.805e-05,2]
[348733165,1736760634364,-500.0,9.805e-05,2]
[348733166,1736760634373,-573.04,9.805e-05,2]
[348733167,1736760634382,-851.27,9.805e-05,2]
[348733168,1736760634392,-712.54,9.805e-05,2]
[348733169,1736760634401,-1542.14,9.805e-05,2]
[348733170,1736760634411,-662.65,9.805e-05,2]
[348733171,1736760634420,-829.95,9.805e-05,2]
[348733172,1736760634430,-686.45,9.805e-05,2]
[348733173,1736760634440,-735.31,9.805e-05,2]
[348733174,1736760634450,-500.0,9.805e-05,2]
[348733175,1736760634460,-744.98,9.805e-05,2]
[348733176,1736760634470,-951.14,9.805e-05,2]
[348733177,1736760634479,-500.0,9.805e-05,2]
[348733178,1736760634490,-1693.99,9.805e-05,2]
[348733179,1736760634500,-732.181955,9.805e-05,2]
[348733180,1736760634510,-2021.14,9.805e-05,2]
[348733181,1736760634520,-565.9,9.806e-05,2]
[348733182,1736760634530,-522.92,9.806e-05,2]
[348733183,1736760634540,-1440.99,9.806e-05,2]
[348733184,1736760634549,-510.44,9.806e-05,2]
[348733185,1736760634559,-812.88,9.806e-05,2]
[348733186,1736760634568,-746.58,9.806e-05,2]
[348733187,1736760634578,-500.0,9.806e-05,2]
[348733188,1736760634587,-1000.0,9.806e-05,2]
[348733189,1736760634597,-500.0,9.806e-05,2]
[348733190,1736760634607,-500.0,9.806e-05,2]
[348733191,1736760634616,-1348.18,9.806e-05,2]
[348733192,1736760634642,-885.05,9.806e-05,2]
[348733193,1736760634652,-500.0,9.806e-05,2]
[348733194,1736760634661,-688.03,9.806e-05,2]
[348733195,1736760634671,-680.73,9.806e-05,2]
[348733196,1736760634680,-500.0,9.806e-05,2]
[348733197,1736760634690,-601.82,9.806e-05,2]
[348733198,1736760634699,-858.19,9.806e-05,2]
[348733199,1736760634709,-514.9,9.806e-05,2]
[348733200,1736760634719,-544.33,9.806e-05,2]
[348733201,1736760634729,-789.98,9.806e-05,2]
[348733202,1736760634739,-561.9792,9.9e-05,2]
[348733203,1736760634750,-671.43858657,9.969e-05,2]
[348733204,1736760634760,-500.0,9.987e-05,2]
[348733205,1736760634769,-1239.9,9.987e-05,2]
[348733206,1736760634779,-931.87,9.987e-05,2]
[348733207,1736760634788,-856.11,9.987e-05,2]
[348733208,1736760634798,-540.12,9.987e-05,2]
[348733209,1736760634808,-1771.04,9.987e-05,2]
[348733210,1736760634820,-500.0,9.987e-05,2]
[348733211,1736760634830,-163.41609516,9.987e-05,2]
[348733212,1736760634839,-884.1,9.987e-05,2]
[348733213,1736760634848,-500.0,9.987e-05,2]
[348733214,1736760634857,-1632.48,9.987e-05,2]
[348733215,1736760634868,-500.0,9.987e-05,2]
[348733216,1736760634878,-500.0,9.987e-05,2]
[348733217,1736760634888,-500.0,9.987e-05,2]
[348733218,1736760634898,-500.0,9.987e-05,2]
[348733219,1736760634908,-500.0,9.987e-05,2]
[348733220,1736760634918,-500.0,9.987e-05,2]
[348733221,1736760634927,-1260.32,9.987e-05,2]
[348733222,1736760634937,-500.0,9.987e-05,2]
[348733223,1736760634946,-145139.7056494,9.988e-05,2]
[348733224,1736760634955,-25532.11178675,9.998e-05,2]
[348733225,1736760634964,-9126.77266898,9.998e-05,2]
[348733226,1736760634974,-17439.46740302,9.998e-05,2]
[348733227,1736760634983,-500.0,9.999e-05,2]
[348733228,1736760634992,-500.0,9.999e-05,2]
[348733229,1736760635001,-500.0,9.999e-05,2]
[348733230,1736760635010,-565.46,9.999e-05,2]
[348733231,1736760635019,-500.0,9.999e-05,2]
[348733232,1736760635028,-500.0,9.999e-05,2]
[348733233,1736760635037,-500.0,9.999e-05,2]
[348733234,1736760635046,-500.0,9.999e-05,2]
[348733235,1736760635055,-500.0,9.999e-05,2]
[348733236,1736760635066,-500.0,9.999e-05,2]
[348733237,1736760635075,-500.0,9.999e-05,2]